fUST/lending_fUST_20241222
["ID","MTS","AMOUNT","RATE_DAILY","PERIOD"]
[346307215,1734882645719,-500.0,0.00013972,2]
[346307217,1734882645728,-796.82,0.00013972,2]
[346307219,1734882645737,-500.0,0.00013972,2]
[346307221,1734882645747,-832.29,0.00013972,2]
[346307223,1734882645756,-500.0,0.00013972,2]
[346307225,1734882645765,-1008.6,0.00013972,2]
[346307227,1734882645774,-500.0,0.00013972,2]
[346307229,1734882645783,-500.0,0.00013972,2]
[346307231,1734882645793,-500.0,0.00013972,2]
[346307233,1734882645802,-500.0,0.00013972,2]
[346307235,1734882645812,-741.4,0.00013972,2]
[346307237,1734882645821,-500.0,0.00013972,2]
[346307238,1734882645830,-2214.91,0.00013972,2]
[346307240,1734882645840,-500.0,0.00013972,2]
[346307242,1734882645849,-500.0,0.00013972,2]
[346307245,1734882645858,-592.02,0.00013972,2]
[346307247,1734882645868,-500.0,0.00013972,2]
[346307249,1734882645877,-500.0,0.00013972,2]
[346307251,1734882645886,-500.0,0.00013972,2]
[346307252,1734882645896,-500.0,0.00013972,2]
[346307255,1734882645906,-500.0,0.00013972,2]
[346307256,1734882645915,-500.0,0.00013972,2]
[346307257,1734882645925,-578.88,0.00013972,2]
[346307258,1734882645935,-500.0,0.00013972,2]
[346307259,1734882645944,-500.0,0.00013972,2]
[346307260,1734882645954,-500.0,0.00013972,2]
[346307261,1734882645964,-710.54,0.00013972,2]
[346307262,1734882645973,-500.0,0.00013972,2]
[346307263,1734882645982,-500.0,0.00013972,2]
[346307264,1734882645992,-822.23,0.00013972,2]
[346307265,1734882646001,-2516.33,0.00013972,2]
[346307266,1734882646011,-500.0,0.00013972,2]
[346307267,1734882646021,-1092.35,0.00013972,2]
[346307268,1734882646030,-500.0,0.00013972,2]
[346307269,1734882646039,-969.27,0.00013972,2]
[346307270,1734882646049,-2802.73,0.00013972,2]
[346307272,1734882646058,-500.0,0.00013972,2]
[346307274,1734882646068,-500.53051408,0.00013972,2]
[346307276,1734882646078,-500.0,0.00013972,2]
[346307278,1734882646087,-500.0,0.00013972,2]
[346307280,1734882646097,-2251.88,0.00013972,2]
[346307282,1734882646111,-500.0,0.00013972,2]
[346307284,1734882646121,-500.0,0.00013972,2]
[346307285,1734882646130,-500.0,0.00013972,2]
[346307288,1734882646140,-802.46,0.00013972,2]
[346307289,1734882646151,-501.96815745,0.00013972,2]
[346307291,1734882646160,-500.0,0.00013972,2]
[346307293,1734882646168,-500.0,0.00013972,2]
[346307295,1734882646178,-500.0,0.00013972,2]
[346307298,1734882646188,-500.0,0.00013972,2]
[346307299,1734882646197,-1707.17,0.00013972,2]
[346307301,1734882646208,-907.59,0.00013972,2]
[346307303,1734882646217,-500.0,0.00013972,2]
[346307305,1734882646226,-500.0,0.00013972,2]
[346307307,1734882646236,-500.0,0.00013972,2]
[346307309,1734882646246,-500.0,0.00013972,2]
[346307311,1734882646255,-2437.81,0.00013972,2]
[346307313,1734882646265,-500.0,0.00013972,2]
[346307315,1734882646275,-504.4706597,0.00013972,2]
[346307317,1734882646284,-500.0,0.00013972,2]
[346307319,1734882646293,-500.0,0.00013972,2]
[346307321,1734882646303,-500.0,0.00013972,2]
[346307323,1734882646312,-500.0,0.00013972,2]
[346307325,1734882646325,-500.0,0.00013972,2]
[346307327,1734882646335,-500.0,0.00013972,2]
[346307329,1734882646344,-3615.51,0.00013972,2]
[346307331,1734882646354,-1043.19,0.00013972,2]
[346307333,1734882646365,-500.0,0.00013972,2]
[346307335,1734882646375,-551.52055496,0.00013972,2]
[346307337,1734882646384,-976.35,0.00013972,2]
[346307339,1734882646394,-543.81,0.00013972,2]
[346307341,1734882646403,-500.0,0.00013972,2]
[346307343,1734882646413,-711.3,0.00013972,2]
[346307345,1734882646422,-500.0,0.00013972,2]
[346307347,1734882646432,-506.43871997,0.00013972,2]
[346307349,1734882646441,-500.0,0.00013972,2]
[346307351,1734882646451,-593.37,0.00013972,2]
[346307353,1734882646460,-500.0,0.00013972,2]
[346307355,1734882646470,-500.0,0.00013972,2]
[346307357,1734882646479,-500.0,0.00013972,2]
[346307359,1734882646489,-1209.25,0.00013972,2]
[346307361,1734882646498,-1442.53,0.00013972,2]
[346307363,1734882646507,-500.0,0.00013972,2]
[346307365,1734882646516,-500.0,0.00013972,2]
[346307367,1734882646526,-500.0,0.00013972,2]
[346307369,1734882646535,-393.57552462,0.00013972,2]
[346307373,1734882646557,-835.20447538,0.00013972,2]
[346307375,1734882646566,-1676.23,0.00013972,2]
[346307376,1734882646580,-3632.1,0.00013972,2]
[346307378,1734882646588,-500.0,0.00013972,2]
[346307380,1734882646598,-500.0,0.00013972,2]
[346307382,1734882646607,-141.37169008,0.00013972,2]
[346307386,1734882646631,-358.62830992,0.00013972,2]
[346307388,1734882646641,-565.21,0.00013972,2]
[346307390,1734882646649,-1064.18,0.00013972,2]
[346307392,1734882646659,-500.0,0.00013972,2]
[346307394,1734882646668,-500.0,0.00013972,2]
[346307396,1734882646678,-500.0,0.00013972,2]
[346307398,1734882646687,-2315.22,0.00013972,2]
[346307400,1734882646696,-613.13,0.00013972,2]
[346307402,1734882646705,-500.0,0.00013972,2]
[346307403,1734882646715,-500.0,0.00013972,2]
[346307406,1734882646725,-500.0,0.00013972,2]
[346307408,1734882646734,-500.0,0.00013972,2]
[346307410,1734882646744,-673.33,0.00013972,2]
[346307412,1734882646753,-500.0,0.00013972,2]
[346307414,1734882646762,-971.15,0.00013972,2]
[346307416,1734882646771,-500.0,0.00013972,2]
[346307417,1734882646780,-1187.33168539,0.00013972,2]
[346307420,1734882646791,-666.42831461,0.00013972,2]
[346307422,1734882646800,-478.94766135,0.00013972,2]
[346307424,1734882646812,-21.05233865,0.00013972,2]
[346307426,1734882646823,-500.0,0.00013972,2]
[346307428,1734882646833,-500.0,0.00013972,2]
[346307430,1734882646843,-279.22681415,0.00013972,2]
[346307432,1734882646853,-500.0,0.00013972,2]
[346307434,1734882646862,-500.0,0.00013972,2]
[346307436,1734882646872,-500.0,0.00013972,2]
[346307438,1734882646881,-5996.24,0.00013972,2]
[346307440,1734882646890,-500.0,0.00013972,2]
[346307442,1734882646900,-500.0,0.00013972,2]
[346307444,1734882646910,-775.57,0.00013972,2]
[346307446,1734882646920,-878.45,0.00013972,2]
[346307448,1734882646930,-513.54,0.00013972,2]
[346307450,1734882646940,-2407.49303695,0.00013972,2]
[346307452,1734882646952,-1979.77276785,0.00013972,2]
[346307555,1734882647927,-1003.81,0.00013698,2]
[346307557,1734882647937,-14907.6641952,0.00013972,2]
[346307559,1734882647946,-500.0,0.00013972,2]
[346307561,1734882647956,-627.52,0.00013972,2]
[346307563,1734882647966,-3406.86,0.00013972,2]
[346307565,1734882647976,-500.0,0.00013972,2]
[346307567,1734882647985,-500.0,0.00013972,2]
[346307569,1734882647994,-500.0,0.00013972,2]
[346307571,1734882648003,-621.68,0.00013972,2]
[346307573,1734882648013,-500.0,0.00013972,2]
[346307575,1734882648022,-858.34,0.00013972,2]
[346307577,1734882648031,-2949.49,0.00013972,2]
[346307579,1734882648040,-500.0,0.00013972,2]
[346307581,1734882648050,-500.0,0.00013972,2]
[346307583,1734882648060,-1189.47,0.00013972,2]
[346307585,1734882648070,-500.0,0.00013972,2]
[346307587,1734882648079,-178.91805723,0.00013972,2]
[346307589,1734882648089,-500.0,0.00013972,2]
[346307591,1734882648098,-500.0,0.00013972,2]
[346307593,1734882648108,-500.0,0.00013972,2]
[346307595,1734882648119,-500.0,0.00013972,2]
[346307597,1734882648129,-806.36,0.00013972,2]
[346307599,1734882648138,-500.0,0.00013972,2]
[346307601,1734882648147,-24855.4,0.00013972,2]
[346307603,1734882648157,-601.45,0.00013972,2]
[346307605,1734882648167,-1670.83,0.00013972,2]
[346307607,1734882648176,-500.0,0.00013972,2]
[346307609,1734882648186,-500.0,0.00013972,2]
[346307611,1734882648195,-648.3,0.00013972,2]
[346307613,1734882648204,-508.71798768,0.00013972,2]
[346307615,1734882648213,-1848.71,0.00013972,2]
[346307617,1734882648222,-598.87,0.00013972,2]
[346307619,1734882648232,-504.63342108,0.00013972,2]
[346307621,1734882648241,-500.0,0.00013972,2]
[346307623,1734882648250,-773.0,0.00013972,2]
[346307624,1734882648259,-732.23,0.00013972,2]
[346307626,1734882648268,-1664.55,0.00013972,2]
[346307628,1734882648277,-500.0,0.00013972,2]
[346307631,1734882648287,-500.0,0.00013972,2]
[346307633,1734882648296,-500.0,0.00013972,2]
[346307635,1734882648306,-1112.14,0.00013972,2]
[346307637,1734882648316,-4193.06,0.00013972,2]
[346307639,1734882648327,-377.37949813,0.00013972,2]
[346307641,1734882648337,-500.0,0.00013972,2]
[346307643,1734882648347,-541.66,0.00013972,2]
[346307645,1734882648356,-500.0,0.00013972,2]
[346307647,1734882648366,-178.75816464,0.00013972,2]
[346307649,1734882648375,-500.0,0.00013972,2]
[346307651,1734882648384,-1166.38,0.00013972,2]
[346307652,1734882648394,-500.0,0.00013972,2]
[346307655,1734882648404,-500.0,0.00013972,2]
[346307656,1734882648413,-500.0,0.00013972,2]
[346307658,1734882648422,-5174.89,0.00013972,2]
[346307660,1734882648432,-45594.41013604,0.00013972,2]
[346307663,1734882648445,-10804.76545803,0.00013972,2]
[346307665,1734882648457,-23839.49985005,0.00013972,2]
[346307666,1734882648468,-1310.27166094,0.00013972,2]
[346307719,1734882649100,-580.9706661,0.00013698,2]
[346307721,1734882649112,-2333.40289494,0.00013972,2]
[346307723,1734882649122,-919.06,0.00013972,2]
[346307725,1734882649131,-500.0,0.00013972,2]
[346307727,1734882649142,-500.0,0.00013972,2]
[346307729,1734882649151,-586.17,0.00013972,2]
[346307731,1734882649160,-12699.53,0.00013972,2]
[346307733,1734882649170,-500.0,0.00013972,2]
[346307735,1734882649179,-500.0,0.00013972,2]
[346307737,1734882649189,-1451.35,0.00013972,2]
[346307739,1734882649198,-3303.15,0.00013972,2]
[346307741,1734882649207,-500.0,0.00013972,2]
[346307743,1734882649217,-500.0,0.00013972,2]
[346307745,1734882649226,-500.0,0.00013972,2]
[346307747,1734882649235,-500.0,0.00013972,2]
[346307749,1734882649244,-22822.65,0.00013972,2]
[346307751,1734882649253,-3121.02,0.00013972,2]
[346307753,1734882649262,-500.0,0.00013972,2]
[346307755,1734882649271,-500.0,0.00013972,2]
[346307757,1734882649280,-500.0,0.00013972,2]
[346307759,1734882649289,-509.06561681,0.00013972,2]
[346307761,1734882649299,-1000.0,0.00013972,2]
[346307763,1734882649308,-500.0,0.00013972,2]
[346307765,1734882649317,-1012.45,0.00013972,2]
[346307767,1734882649328,-500.0,0.00013972,2]
[346307769,1734882649337,-500.0,0.00013972,2]
[346307771,1734882649347,-500.0,0.00013972,2]
[346307773,1734882649356,-500.0,0.00013972,2]
[346307775,1734882649366,-500.0,0.00013972,2]
[346307777,1734882649376,-500.0,0.00013972,2]
[346307779,1734882649385,-369.51778233,0.00013972,2]
[346307781,1734882649394,-500.0,0.00013972,2]
[346307783,1734882649403,-617.25,0.00013972,2]
[346307785,1734882649412,-500.0,0.00013972,2]
[346307787,1734882649422,-512.04703458,0.00013972,2]
[346307789,1734882649431,-1307.52,0.00013972,2]
[346307791,1734882649440,-2067.24,0.00013972,2]
[346307793,1734882649449,-531.3,0.00013972,2]
[346307795,1734882649459,-908.29,0.00013972,2]
[346307797,1734882649468,-3575.43,0.00013972,2]
[346307799,1734882649477,-577.22,0.00013972,2]
[346307801,1734882649487,-500.0,0.00013972,2]
[346307803,1734882649496,-1533.33,0.00013972,2]
[346307805,1734882649505,-7986.81,0.00013972,2]
[346307807,1734882649514,-151.0,0.00013972,2]
[346307809,1734882649524,-151.0,0.00013972,2]
[346307811,1734882649533,-207.1263495,0.00013972,2]
[346307813,1734882649543,-151.0,0.00013972,2]
[346307815,1734882649552,-255.133964,0.00013972,2]
[346307817,1734882649561,-325.30092944,0.00013972,2]
[346307819,1734882649572,-522.4,0.00013972,2]
[346307821,1734882649581,-500.0,0.00013972,2]
[346307823,1734882649590,-500.0,0.00013972,2]
[346307825,1734882649600,-500.0,0.00013972,2]
[346307827,1734882649610,-500.0,0.00013972,2]
[346307829,1734882649619,-665.77,0.00013972,2]
[346307831,1734882649629,-6799.83,0.00013972,2]
[346307833,1734882649638,-734.61,0.00013972,2]
[346307835,1734882649647,-504.44,0.00013972,2]
[346307837,1734882649656,-500.0,0.00013972,2]
[346307839,1734882649665,-500.0,0.00013972,2]
[346307841,1734882649675,-887.04,0.00013972,2]
[346307843,1734882649684,-500.0,0.00013972,2]
[346307845,1734882649693,-1589.95,0.00013972,2]
[346307847,1734882649703,-1925.03,0.00013972,2]
[346307848,1734882649713,-500.0,0.00013972,2]
[346307850,1734882649722,-700.32,0.00013972,2]
[346307851,1734882649731,-1719.23,0.00013972,2]
[346307853,1734882649741,-1365.88,0.00013972,2]
[346307855,1734882649751,-955.12,0.00013972,2]
[346307856,1734882649760,-151.0,0.00013972,2]
[346307858,1734882649770,-151.0,0.00013972,2]
[346307860,1734882649779,-151.0,0.00013972,2]
[346307861,1734882649789,-151.0,0.00013972,2]
[346307863,1734882649798,-4977.5,0.00013972,2]
[346307864,1734882649807,-1149.96,0.00013972,2]
[346307865,1734882649816,-500.0,0.00013972,2]
[346307867,1734882649826,-500.0,0.00013972,2]
[346307869,1734882649835,-2887.81,0.00013972,2]
[346307870,1734882649845,-500.0,0.00013972,2]
[346307871,1734882649854,-3272.67,0.00013972,2]
[346307873,1734882649863,-500.0,0.00013972,2]
[346307875,1734882649874,-500.0,0.00013972,2]
[346307876,1734882649885,-501.49980939,0.00013972,2]
[346307878,1734882649895,-500.0,0.00013972,2]
[346307879,1734882649904,-500.0,0.00013972,2]
[346307881,1734882649914,-500.0,0.00013972,2]
[346307883,1734882649925,-500.0,0.00013972,2]
[346307884,1734882649935,-500.0,0.00013972,2]
[346307886,1734882649944,-500.0,0.00013972,2]
[346307887,1734882649953,-500.0,0.00013972,2]
[346307889,1734882649963,-872.97,0.00013972,2]
[346307890,1734882649972,-521.15447523,0.00013972,2]
[346307892,1734882649982,-1775.03,0.00013972,2]
[346307894,1734882649991,-1611.86,0.00013972,2]
[346307895,1734882650001,-500.0,0.00013972,2]
[346307897,1734882650011,-500.0,0.00013972,2]
[346307898,1734882650021,-1588.64,0.00013972,2]
[346307900,1734882650031,-1520.08,0.00013972,2]
[346307902,1734882650040,-6292.59,0.00013972,2]
[346307903,1734882650051,-500.0,0.00013972,2]
[346307905,1734882650061,-876.14,0.00013972,2]
[346307907,1734882650070,-500.0,0.00013972,2]
[346307908,1734882650080,-500.0,0.00013972,2]
[346307910,1734882650089,-3359.14,0.00013972,2]
[346307912,1734882650099,-500.0,0.00013972,2]
[346307914,1734882650110,-1003.81,0.00013972,2]
[346307915,1734882650120,-487.67187444,0.00013973,2]
[346307917,1734882650129,-500.0,0.00013973,2]
[346307918,1734882650138,-500.0,0.00013973,2]
[346307920,1734882650147,-500.0,0.00013973,2]
[346307922,1734882650157,-500.0,0.00013973,2]
[346307924,1734882650167,-500.0,0.00013973,2]
[346307925,1734882650176,-501.7450204,0.00013973,2]
[346307927,1734882650186,-500.0,0.00013973,2]
[346307929,1734882650196,-573.35836591,0.00013973,2]
[346307930,1734882650205,-400.0,0.00013973,2]
[346307932,1734882650214,-416.21056253,0.00013982,2]
[346307934,1734882650224,-500.0,0.00014246,2]
[346307935,1734882650233,-500.0,0.00014246,2]
[346307937,1734882650243,-500.0,0.00014246,2]
[346307939,1734882650252,-505.50692279,0.00014246,2]
[346307941,1734882650262,-500.0,0.00014246,2]
[346307942,1734882650271,-500.0,0.00014246,2]
[346307944,1734882650281,-500.0,0.00014246,2]
[346307946,1734882650290,-550.95,0.00014246,2]
[346307947,1734882650299,-500.0,0.00014246,2]
[346307949,1734882650309,-568.07,0.00014246,2]
[346307951,1734882650318,-618.59,0.00014246,2]
[346307953,1734882650328,-500.0,0.00014246,2]
[346307954,1734882650337,-500.0,0.00014246,2]
[346307956,1734882650346,-919.51,0.00014246,2]
[346307958,1734882650355,-500.0,0.00014246,2]
[346307959,1734882650365,-522.68,0.00014246,2]
[346307961,1734882650374,-500.0,0.00014246,2]
[346307963,1734882650384,-500.0,0.00014246,2]
[346307965,1734882650394,-500.0,0.00014246,2]
[346307966,1734882650404,-500.0,0.00014246,2]
[346307981,1734882650575,-500.0,0.00014246,2]
[346307983,1734882650586,-500.0,0.00014246,2]
[346307985,1734882650595,-807.3,0.00014246,2]
[346307986,1734882650605,-500.0,0.00014246,2]
[346307988,1734882650614,-500.0,0.00014246,2]
[346307990,1734882650624,-1102.51,0.00014246,2]
[346307992,1734882650634,-500.0,0.00014246,2]
[346307993,1734882650643,-500.0,0.00014246,2]
[346307995,1734882650653,-500.0,0.00014246,2]
[346307997,1734882650663,-500.0,0.00014246,2]
[346307999,1734882650672,-500.0,0.00014246,2]
[346308000,1734882650682,-500.0,0.00014246,2]
[346308002,1734882650692,-580.6856816,0.00014246,2]
[346308004,1734882650702,-500.0,0.00014246,2]
[346308006,1734882650711,-222.00794565,0.00014246,2]
[346308008,1734882650721,-500.0,0.00014246,2]
[346308009,1734882650730,-500.0,0.00014246,2]
[346308011,1734882650740,-500.0,0.00014246,2]
[346308013,1734882650749,-629.3,0.00014246,2]
[346308015,1734882650759,-500.0,0.00014246,2]
[346308016,1734882650768,-500.0,0.00014246,2]
[346308018,1734882650778,-151.0,0.00014246,2]
[346308020,1734882650788,-151.0,0.00014246,2]
[346308021,1734882650797,-151.0,0.00014246,2]
[346308023,1734882650806,-500.0,0.00014246,2]
[346308025,1734882650816,-500.0,0.00014246,2]
[346308027,1734882650828,-500.0,0.00014246,2]
[346308028,1734882650837,-500.0,0.00014246,2]
[346308030,1734882650847,-500.0,0.00014246,2]
[346308032,1734882650857,-500.0,0.00014246,2]
[346308034,1734882650867,-500.0,0.00014246,2]
[346308036,1734882650877,-500.0,0.00014246,2]
[346308037,1734882650887,-500.0,0.00014246,2]
[346308039,1734882650897,-500.0,0.00014246,2]
[346308041,1734882650908,-500.0,0.00014246,2]
[346308043,1734882650918,-500.0,0.00014246,2]
[346308044,1734882650927,-500.0,0.00014246,2]
[346308046,1734882650937,-500.0,0.00014246,2]
[346308048,1734882650947,-999.56,0.00014246,2]
[346308050,1734882650956,-1120.79,0.00014246,2]
[346308051,1734882650966,-500.0,0.00014246,2]
[346308053,1734882650976,-500.0,0.00014246,2]
[346308055,1734882650986,-993.59,0.00014246,2]
[346308057,1734882650996,-534.09,0.00014246,2]
[346308058,1734882651005,-1039.21,0.00014246,2]
[346308060,1734882651015,-500.0,0.00014246,2]
[346308062,1734882651024,-938.62,0.00014246,2]
[346308064,1734882651034,-572.41638013,0.00014246,2]
[346308065,1734882651044,-500.0,0.00014246,2]
[346308067,1734882651053,-500.0,0.00014246,2]
[346308069,1734882651063,-500.0,0.00014246,2]
[346308071,1734882651075,-500.0,0.00014246,2]
[346308072,1734882651084,-500.0,0.00014246,2]
[346308074,1734882651093,-500.0,0.00014246,2]
[346308076,1734882651106,-500.0,0.00014246,2]
[346308078,1734882651122,-500.0,0.00014246,2]
[346308080,1734882651132,-1111.02,0.00014246,2]
[346308081,1734882651142,-500.0,0.00014246,2]
[346308083,1734882651152,-500.0,0.00014246,2]
[346308085,1734882651161,-1216.02,0.00014246,2]
[346308086,1734882651171,-500.0,0.00014246,2]
[346308088,1734882651181,-773.6,0.00014246,2]
[346308090,1734882651191,-500.0,0.00014246,2]
[346308092,1734882651202,-514.55035673,0.00014246,2]
[346308094,1734882651211,-500.0,0.00014246,2]
[346308096,1734882651220,-1536.02,0.00014246,2]
[346308098,1734882651230,-500.0,0.00014246,2]
[346308100,1734882651239,-890.78,0.00014246,2]
[346308102,1734882651249,-500.0,0.00014246,2]
[346308104,1734882651259,-500.0,0.00014246,2]
[346308106,1734882651269,-500.0,0.00014246,2]
[346308107,1734882651278,-500.0,0.00014246,2]
[346308108,1734882651287,-2060.8,0.00014246,2]
[346308109,1734882651296,-500.0,0.00014246,2]
[346308110,1734882651305,-500.0,0.00014246,2]
[346308111,1734882651314,-555.48,0.00014246,2]
[346308112,1734882651327,-500.0,0.00014246,2]
[346308113,1734882651336,-500.0,0.00014246,2]
[346308114,1734882651346,-500.0,0.00014246,2]
[346308115,1734882651355,-566.91,0.00014246,2]
[346308116,1734882651364,-500.0,0.00014246,2]
[346308117,1734882651373,-500.0,0.00014246,2]
[346308118,1734882651382,-500.0,0.00014246,2]
[346308119,1734882651393,-343.12,0.00014246,2]
[346308120,1734882651402,-508.12066074,0.00014246,2]
[346308121,1734882651411,-500.0,0.00014246,2]
[346308122,1734882651420,-3186.28,0.00014246,2]
[346308123,1734882651431,-500.58443731,0.00014246,2]
[346308124,1734882651440,-500.0,0.00014246,2]
[346308125,1734882651450,-5917.15,0.00014246,2]
[346308126,1734882651459,-500.0,0.00014246,2]
[346308127,1734882651469,-500.0,0.00014246,2]
[346308128,1734882651479,-500.0,0.00014246,2]
[346308129,1734882651488,-794.47,0.00014246,2]
[346308130,1734882651498,-500.0,0.00014246,2]
[346308131,1734882651507,-517.54,0.00014246,2]
[346308132,1734882651516,-500.0,0.00014246,2]
[346308134,1734882651525,-500.0,0.00014246,2]
[346308135,1734882651534,-501.94381524,0.00014246,2]
[346308136,1734882651544,-1153.13,0.00014246,2]
[346308138,1734882651554,-706.46,0.00014246,2]
[346308140,1734882651563,-500.0,0.00014246,2]
[346308142,1734882651574,-500.0,0.00014246,2]
[346308144,1734882651584,-505.26,0.00014246,2]
[346308146,1734882651593,-2452.15,0.00014246,2]
[346308148,1734882651603,-500.0,0.00014246,2]
[346308150,1734882651613,-500.0,0.00014246,2]
[346308152,1734882651622,-987.13,0.00014246,2]
[346308154,1734882651632,-864.98,0.00014246,2]
[346308156,1734882651643,-500.31566523,0.00014246,2]
[346308158,1734882651652,-500.0,0.00014246,2]
[346308160,1734882651662,-1422.84,0.00014246,2]
[346308162,1734882651672,-249.52045489,0.00014246,2]
[346308165,1734882651681,-500.0,0.00014246,2]
[346308166,1734882651691,-500.0,0.00014246,2]
[346308168,1734882651700,-500.0,0.00014246,2]
[346308170,1734882651710,-500.0,0.00014246,2]
[346308173,1734882651720,-349.96633373,0.00014246,2]
[346308174,1734882651730,-2219.63,0.00014246,2]
[346308177,1734882651740,-751.0,0.00014246,2]
[346308179,1734882651750,-500.0,0.00014246,2]
[346308180,1734882651759,-500.0,0.00014246,2]
[346308182,1734882651768,-500.0,0.00014246,2]
[346308184,1734882651778,-3126.25,0.00014246,2]
[346308186,1734882651787,-500.0,0.00014246,2]
[346308188,1734882651796,-1091.44,0.00014246,2]
[346308190,1734882651806,-1972.18,0.00014246,2]
[346308192,1734882651815,-2036.99,0.00014246,2]
[346308194,1734882651827,-500.0,0.00014246,2]
[346308196,1734882651838,-1683.22,0.00014246,2]
[346308198,1734882651847,-1830.13,0.00014246,2]
[346308200,1734882651856,-500.0,0.00014246,2]
[346308202,1734882651866,-500.0,0.00014246,2]
[346308204,1734882651875,-500.0,0.00014246,2]
[346308206,1734882651884,-1692.58,0.00014246,2]
[346308208,1734882651893,-500.0,0.00014246,2]
[346308210,1734882651902,-796.82,0.00014246,2]
[346308212,1734882651912,-500.0,0.00014246,2]
[346308214,1734882651922,-832.29,0.00014246,2]
[346308216,1734882651932,-500.0,0.00014246,2]
[346308218,1734882651941,-1008.6,0.00014246,2]
[346308220,1734882651951,-432.62673414,0.00014246,2]
[346308222,1734882651960,-500.0,0.00014246,2]
[346308224,1734882651969,-500.0,0.00014246,2]
[346308226,1734882651978,-500.0,0.00014246,2]
[346308228,1734882651987,-741.4,0.00014246,2]
[346308230,1734882651997,-500.0,0.00014246,2]
[346308232,1734882652006,-2214.91,0.00014246,2]
[346308234,1734882652016,-500.0,0.00014246,2]
[346308236,1734882652025,-500.0,0.00014246,2]
[346308238,1734882652034,-592.02,0.00014246,2]
[346308240,1734882652044,-271.04371802,0.00014246,2]
[346308242,1734882652053,-500.0,0.00014246,2]
[346308244,1734882652062,-500.0,0.00014246,2]
[346308246,1734882652073,-500.0,0.00014246,2]
[346308248,1734882652082,-500.0,0.00014246,2]
[346308250,1734882652092,-500.0,0.00014246,2]
[346308252,1734882652102,-578.88,0.00014246,2]
[346308254,1734882652114,-500.0,0.00014246,2]
[346308256,1734882652123,-500.0,0.00014246,2]
[346308258,1734882652133,-500.0,0.00014246,2]
[346308260,1734882652142,-710.54,0.00014246,2]
[346308262,1734882652152,-500.0,0.00014246,2]
[346308264,1734882652161,-500.0,0.00014246,2]
[346308266,1734882652170,-822.23,0.00014246,2]
[346308268,1734882652180,-2516.33,0.00014246,2]
[346308270,1734882652189,-500.0,0.00014246,2]
[346308272,1734882652199,-1092.35,0.00014246,2]
[346308274,1734882652208,-500.0,0.00014246,2]
[346308276,1734882652218,-969.27,0.00014246,2]
[346308278,1734882652227,-2802.73,0.00014246,2]
[346308280,1734882652236,-500.0,0.00014246,2]
[346308282,1734882652245,-500.0,0.00014246,2]
[346308284,1734882652254,-500.0,0.00014246,2]
[346308286,1734882652264,-2251.88,0.00014246,2]
[346308288,1734882652273,-500.0,0.00014246,2]
[346308290,1734882652283,-500.0,0.00014246,2]
[346308292,1734882652293,-500.0,0.00014246,2]
[346308294,1734882652303,-802.46,0.00014246,2]